{"text_format":"1","workbook":"xlsx","n_sheets":14,"sheets":["Introduction","Flammable  + Toxic","Paints","Corrosives","Oxidizers + Reactive"," PCBs + Asbestos","Aerosols & Cylinders","Reclaimable","Non-RCRA & Other","Electronic Waste","Labor","One Day Events","Door-to-Door Program","Training & Supplies"],"not_rendered":{"charts":0,"images":0,"macros":1,"external_links":0,"defined_names":5,"comments":0,"pivot_tables":0},"unopened":[],"bounds":{"document_bytes":16777216,"sheet_cells":100000,"rows_first":2000,"rows_last":500,"rows_between":2000,"halvings":0,"cell_chars":16384,"cell_head_chars":4096},"cells_cut":0,"cells_raw":0,"read":"whole","date_system":"1900"}

{"sheet":"Introduction","index":0,"n_rows":22,"n_cols":1,"rows_kept":22,"cut":false,"hidden":false,"merged":[]}
["Instructions For Pricing Matrix Bid Form  "]
["Helpful Hints for Printing "]
["This workbook is intended to print in landscape mode on 8.5 x 14  or 11 x 17 paper. "]
["Bid Options"]
["Biddors must bid on the entire contract except for any item marked optional. The following tabs will not be evaluated as part of the price evaluation: One Day Events, Door-to-Door Program, Miscellaneous Training, Supplies.These Tabs are for informational purposes only and will be considered in the Waste Management Services evaluation."]
["The County reserves the right to use a local vendor or an existing product stewardship program  for auto batteries, propane cylinders, fire extinguisers and batteries."]
["Pricing Matrix Description"]
["There are 13 sheets of pricing.  Waste disposal tabs roughly correspond to Waste Categories on CIWMB Form 303."]
["Each page contains the following information to assist you in your bid: Waste Category and sub category name, approximate  FY 17-18 amounts shipped, a brief description of the waste stream, typical shipping names, packing methods, approved disposal method, container types and sizes, units of measure,  and additional comments.  Each Sheet also has a column with the quantities that will be used for evaluation."]
["Biddors enter pricing in the column of cells outlined in heavy black borders.  Enter proposed disposal facility  code in darkly outlined cells  at the right margin to match the proposed disposal facility /code listing."]
["Biddors will provide a list of proposed final disposition sites.  Biddor will be responsible for documentation of treatment of each waste shipped through a certificate of dispositoin or similar document.  Biddor will provide a 24 hour emergency response number for each hazardous material or waste shipped under this proposal. "]
["Alternate Proposals"]
["The pricing matrix information is fixed and protected, no alterations are permitted. Biddors may propose alternatives or restrictions to waste stream descriptions, container sizes and types, quantity restrictions and alternate disposal methods by copying waste stream information to the provided alternate proposal space at the bottom of the spreadsheet and making changes to the copied lines.  Please keep the same format, and change text color to blue."]
["The following notes pertain to bid categories in addition to the general instructions above."]
["Definition of some terms: Lab Pack: as conventionally practiced by HHW facilities. Alameda County has \"generic\"  lab pack inventories for each of the described lab pack waste types.  Unique inventory sheets will not be provided for each container shipped.  The existing inventory sheets can be provided to biddors on request.  Biddors should describe any exclusions or restrictions to the general waste descriptions in their bid.\nLoosepack: this term descrinbes placing materials described by the same DOT shipping name in an outer packaging as allowed by DOT regulations or Special Permit. Typical wastes \"loosepacked\" are aerosol cans, paints and paint related material and non-DOT regulated materials such as plaster, morter mixes, stucco, solid sealants coatings or adhesive.  No container inventories are provided with each loosepacked container."]
["   303 Category 1A Flammable and Toxics  "]
["       Flammable Liquids : if any extra charges or rquirements for alternate treatment technologies depending on waste qualities or content are proposed list these\n       charges and define what the charges are for in \"Alternative Proposal\" section"]
["   303 Category 1B Paint and PaintCare Products  "]
["       Oil based paint:  If any extra charges are proposed (i.e. for solids/semi-solids, BTU values, etc) list cost and unit of measure. If all charges are included in the \n       per drum price indicate that extra charges are zero ($0).   In \"Alternate Proposal\" section define what charge(s) are for"]
["      The vendor will act as the contracted Collector of PaintCare products.  The biddor will provide the same service guarentees as are aforded under the standard\n      PaintCare contract. "]
["      Per this arrangement, in the \"Alternate Proposal\" section describe containers provided, planned service intervals, maximum lag time between a request for service and\n     delivery of service. "]
["      List refund provided to the HHW program for each drum of PaintCare paint that the HHW program bulks. "]

{"sheet":"Flammable  + Toxic","index":1,"n_rows":35,"n_cols":15,"rows_kept":35,"cut":false,"hidden":false,"merged":[[28,0,29,0],[28,1,29,1],[28,9,29,9],[28,5,29,5],[25,0,27,0],[25,1,27,1],[25,2,27,2],[25,3,27,3],[20,0,23,0],[17,0,19,0],[25,6,27,6],[20,2,22,2],[9,6,11,6],[17,4,19,4],[20,1,22,1],[13,0,15,0],[3,0,11,0],[6,4,8,4],[4,4,5,4],[4,5,5,5],[14,1,15,1],[6,3,8,3],[6,2,11,2],[6,1,11,1],[4,6,5,6],[25,10,27,10],[14,7,15,7],[9,4,11,4],[9,5,11,5],[24,0,24,11],[20,6,22,6],[6,6,8,6],[4,1,5,1],[4,2,5,2],[4,3,5,3],[25,4,27,4],[25,5,27,5],[20,3,22,3],[17,1,19,1],[14,3,15,3],[20,10,22,10],[14,5,15,5],[14,4,15,4],[20,5,22,5],[14,10,15,10],[17,10,19,10],[20,4,22,4],[17,5,19,5],[17,6,19,6],[6,5,8,5],[17,2,19,2],[17,3,19,3],[14,2,15,2],[9,3,11,3]]}
["Flammable and Toxic"]
["Sub Category","Approximate quantity","Waste description","Typical Shipping Name","Packing Method","PackingGroup","Disposal Method","Container Size & Type","Turnkey cost","Unit of Measure","Additional comments","Disposal Facility ID",null,"Evaluation Quantities","Evaluation Extension"]
[]
["Poisons/Toxics","6 - 55 gallon drums","Pesticide and herbacides considered \"Dioxin precursors\" including products containing Pentachlorophenol, 2,4,5-T, etc. ","Pesticides Flammable Liquid, Toxic N.O.S.","Lab Pack","PGII","Destructive Incineration (H040, H050, H061)","55 Gal 1A2",null,"Drum",null,null,null,6,{"$f":"I4*N4","v":0}]
[null,"900 x 55 gallon drum","Garden, home and animal pest control products, industrial chemicals and solvents, cleaning products, over the counter and prescription (no controlled substances) medication\n","Pesticides Flammable Liquid, Toxic N.O.S.\nPesticides Toxic Liquid, N.O.S.\nPesticides Toxic Solid, N.O.S.\nEnvironmentally Hazardous Substances Liquid/Solid N.O.S","Lab Pack","PGll","Destructive Incineration (H040, H050, H061)","55 Gal 1A2",null,"Drum",null,null,null,800,0]
[null,null,null,null,null,null,null,"DOT spec meterpack",null,"BOX","DOT Spec Yard  Box for Solid Toxic and Solid Class 9 where permitted",null,null,30,0]
[null,"5 x 5 gallon drums","Poison Inhalation Hazard materials\nIncluding Zone A & B inhalation Hazards","Varies PG I  poison Solids and Liquids","Lab Pack","PG l","Destructive Incineration (H040, H050, H061)","5  Gal IH2",null,"Drum",null,null,null,1,0]
[null,null,null,null,null,null,null,"14 Gal 1H2",null,"Drum",null,null,null,2,0]
[null,null,null,null,null,null,null,"30 Gal 1A2/1H2 ",null,"Drum",null,null,null,1,0]
[null,null,null,"Varies- Zone A & B Inhalation Hzards","Lab Pack","PG l IH","Destructive Incineration (H040, H050, H061)","5  Gal IH2",null,"Drum",null,null,null,1,0]
[null,null,null,null,null,null,null,"14 Gal 1H2",null,"Drum",null,null,null,2,0]
[null,null,null,null,null,null,null,"30 Gal 1A2/1H2 ",null,"Drum",null,null,null,1,0]
[]
["Flammable Liquids","1000 x 55 Gallon Drums","Solvents, fuels, gasoline, diesel fuel, paint thinners, oils, alcohols, antifreeze, up to 20% compatible aqueous products"," Flammable Liquid N.O.S.UN1993","Bulk","Varies","Alternative Fuels (H050, H061)","55  Gal 1A1",null,"Drum",null,null,null,1000,0]
[null,"6 x 55 gallon Drums","Solvents, alcohols, organic chemicals not meeting any other hazardous characteristic","Flammable Liquid N.O.S. UN1993","Lab Pack","Varies","Alternative Fuels (H050, H061)","55 Gal 1A2",null,"Drum",null,null,null,3,0]
[null,null,null,null,null,null,"Destructive Incineration (H040, H050, H061)",null,null,"Drum",null,null,null,3,0]
[]
["Road Flares, Fusees, Matches","45 x 5 gal drums","Road flares, matches","Fusees NA 1325 4.1","Loose-pack ","PgII","Destructive Incineration (H040, H050, H061)","5 Gal 1A2",null,"Drum","Specify additional packing requirements /limitations",null,null,40,0]
[null,null,null,null,null,null,null,"14 Gal 1H2",null,"Drum",null,null,null,3,0]
[null,null,null,null,null,null,null,"55 Gal  1H1/1A2",null,"Drum",null,null,null,2,0]
["Flammable Solid, Spontaneously Combustible","6 x 55 Gallon drums","Division 4.1 materials: sodium hydrosulfite, activated carbon, charcoal","Varies, class 4.1","Lab Pack","Varies","Destructive Incineration (H040, H050, H061)","5  Gal IH2",null,"Drum",null,null,null,1,0]
[null,null,null,null,null,null,null,"14 Gal 1H2",null,"Drum",null,null,null,1,0]
[null,null,null,null,null,null,null,"55 Gal 1A2",null,"Drum",null,null,null,6,0]
[null,"60 x  55 Gallon Drums","Division 4.2 materials: sulfur, metaldehyde, paraformaldehyde, iron powder","Varies, class 4.2","Lab Pack","PGll","Destructive Incineration (H040, H050, H061)","55 Gal 1A2",null,"Drum",null,null,null,60,0]
[]
["Lab Pack without Profile","12 x 5 Gallon drums","Materials that do not conform to an approved lab pack profile, no PIH material, or material requiring SP packaging","Varies","Lab Pack","varies","Destructive Incineration (H040, H050, H061)","5  Gal IH2",null,"Drum",null,null,null,10,0]
[null,null,null,null,null,null,null,"14 Gal 1H2",null,"Drum",null,null,null,1,0]
[null,null,null,null,null,null,null,"55 Gal 1A2",null,"Drum",null,null,null,1,0]
["Mercury Compounds","4 x 5 gallon drums","Mercury compounds, inorganic, liquid and solid","Varies","Lab pack","Varies","Metal Recovery: RMERC - H010","5 gallon  1H2",null,"specify below",null,null,null,2,0]
[null,null,"Mercury compounds, organic, liquid and solid","Varies","Lab pack",null,"Metal Recovery: IMERC, REMERC - H010","5 gallon  1H2",null,null,null,null,null,2,{"$f":"I30*N30","v":0}]
[]
[null,null,null,"Alternate Proposals",null,null,null,null,null,null,null,null,null,null,{"$f":"SUM(O4:O31)","v":0}]
[null,null,null,null,null,null,null,null,null,null,null,null,null,null,"Page Evaluation Subtotal"]
["Sub Category","Approx Amounts","Waste description","Typical Shipping Name","Packing Method","Packing Group","Disposal Method","Container Size Type","Turnkey cost","Unit of Measure","Additional comments",null,null,null,{"$f":"O32+Paints!O28+Corrosives!O23+'Oxidizers + Reactive'!O29+' PCBs + Asbestos'!O17+'Aerosols & Cylinders'!O24+Reclaimable!O33+'Non-RCRA & Other'!O32+'Electronic Waste'!M12+Labor!J12+'One Day Events'!G9+'Training & Supplies'!G42","v":0}]
[null,null,null,null,null,null,null,null,null,null,null,null,null,null,"Grand Total All Bid"]

{"sheet":"Paints","index":2,"n_rows":30,"n_cols":15,"rows_kept":30,"cut":false,"hidden":false,"merged":[[22,0,22,11],[17,2,20,2],[17,3,20,3],[4,2,7,2],[4,3,7,3],[4,4,7,4],[4,5,7,5],[3,0,3,11],[8,1,9,1],[8,3,9,3],[17,1,19,1],[11,2,16,2],[11,0,16,0],[11,1,16,1],[17,0,20,0],[4,0,9,0],[4,1,7,1],[4,10,7,10],[14,10,16,10],[11,3,16,3],[18,10,19,10],[17,4,19,4],[17,5,19,5]]}
["Paint"]
["Please provide pricing below for materials not managed under a PaintCare Stewardship contract"]
["Sub Category","Approximate quantity","Waste description","Typical Shipping Name","Packing Method","Packing Group","Disposal Method","Container Size & Type","Turnkey cost","Unit of Measure","Additional comments","Disposal Facility ID",null,"Evaluation Quantities","Evaluation Extension"]
[]
["Oil Based Paint &                          Paint Related Materials","980 x 55  - Gallon Drums\n220 x Meterpack Boxes\n","Non-PaintCare Paint and paint related materials and compatible non-regulated materials, includes solid paints, coatings, resins, tar, wax, ink, adhesive, stucco and plaster products","Paint / Paint Related Material UN1263","Loose-pack","PGII","Alternative Fuels (H050, H061)","55 Gal 1A2",null,"Drum","UN Spec or non Spec Yd Box as authorized by DOT ",null,null,480,{"$f":"I5*N5","v":0}]
[null,null,null,null,null,null,"Alternative Fuels (H050, H061)","DOT spec meterpack",null,"Box",null,null,null,110,0]
[null,null,null,null,null,null,"Destructive Incineration (H040, H050, H061)","55 Gal 1A2",null,"Drum",null,null,null,480,0]
[null,null,null,null,null,null,"Destructive Incineration (H040, H050, H061)","DOT spec meterpack",null,"Box",null,null,null,110,0]
[null,"10 x 55  - Gallon Drums","Non-PaintCare product bulked oil based paint","Paint / Paint Related Material UN1263","Bulk","PGII","Alternative Fuels (H050, H061)","55 Gal 1A2",null,"Drum","Paint Containing free flowing sludge",null,null,10,0]
[null,null,"Describe any additional charges, measurement method and rates in the Alternative Proposal section below\n\nSpecify the unit of measure\n\n\n\nInclude price and unit\n\n\nInclude the maximum cost ceiling for a  55  - Gallon drum of oil based paint",null,"Bulk","PGll","Alternative Fuels (H050, H061)","Unit of Measure for each extra charge",null,"Specify unit of measure","Bulk oil based paint in 55  - Gallon drums may contain free flowing semisolids, settled solids and, discrete solids or any combination of the above.   \n\nTypically bulked oil based paint contains less than 12\" of settled solids.",null,null,"NA"]
[]
["Latex and Water Based Paint","5 x Roll Off Boxes\n10 x 55 gallon drums\n","Latex and water based paint and coatings ","Latex Paint Excludable Recyclable Material \nNon-RCRA Hazardous Waste Liquid\n\n","Loose-pack","N/A","Recycle/ Reuse","40yd roll off",null,"Roll Off","40 Yard Roll off's contain 4 layers of one gallon cans stacked 2 cans high or the equivalent volume in cans quart to 5 gallon in size.  Approximate volume is 3600 one gallon cans per box  ",null,null,5,0]
[null,null,null,null,"Loose-pack","N/A","Recycle/ Reuse","Cubic Meter box/ Reuseable plastic bin/Tubskid",null,"Box","Yard box / plastic bin/tubskidcontains approximately 105 one gallon cans of paint or approximately 440 quart cans of paint. ",null,null,3,0]
[null,null,null,null,"Loose-pack","N/A","Recycle/ Reuse","55 gal 1A2",null,"Box","32 one gallon cans or 126 quart cans per drum ",null,null,3,0]
[null,null,null,null,"Bulk","N/A","Recycle/ Reuse","1A2 drum",null,"Box","Approximately 52 gallons per drum  ",null,null,3,0]
[null,null,null,null,"Bulk","N/A","Recycle Return",null,null,"Box",null,null,null,4,0]
[null,null,null,null,"Bulk","N/A","Remanufacture & Return",null,null,"Box",null,null,null,3,0]
[" Oil Based Paint","\n150 x Meterpack Boxes\n10 x Roll Off Boxes\n","Paints, lacquers, stains, enamels ","Paint / Paint Related Material UN1263","Loose-pack","PGII","Alternative Fuels (H050, H061)","55 gal 1A2",null,"Drum",null,null,null,10,0]
[null,null,null,null,null,null,"Alternative Fuels (H050, H061)","DOT spec meterpack",null,"Box","Spec or non  Dot Spec Yd Box as authorized by DOT ",null,null,150,0]
[null,null,null,null,null,null,"Alternative Fuels (H050, H061)","40yd roll off",null,"Box",null,null,null,10,0]
[null,"85 x 55 Gallon Drums",null,null,"Bulk","PGII","Alternative Fuels (H050, H061)","55 gal 1A2",null,"Drum",null,null,null,85,0]
[]
["Contractor will manage PaintCare eligible materials through their service as a PaintCare Collector operating at the Alameda County HHW facilities. Provide credit offered to Alameda County for paints bulked at HHW facilities and recycled per a PaintCare contract.  All other PaintCare prodcts will be managed at no cost to Alameda County for materiasl, packaging, transportation or disposal."]
[" Oil Based Paint,\nPaintCare","85 x 55 Gallon Drums","Paints, lacquers, stains, enamels ","Paint, UN1263","Bulk","PGII","Alternative Fuels (H050, H061)","55 gal 1A2",null,"Drum","Provide credit offered in red text",null,null,85,{"$f":"I24*N24","v":0}]
[" Oil Based Paint","10 roll off boxes,\n150 meter pack boxes","Paints, lacquers, stains, enamels ","Paint / Paint Related Material UN1263","Loose-pack","PGII","Alternative Fuels (H050, H061)","Roll off and Cubic Meter boxes",null,"NA","No cost for containers or transportation and recycling"]
[" Oil Based Paint","85 x 55 gallon drums","Paints, lacquers, stains, enamels ","Paint / Paint Related Material UN1263","Bulk","PGII","Alternative Fuels (H050, H061)","55 gal 1A2",null,"NA","No cost for containers or transportation and recycling"]
["Latex Paints","45 x Roll Off Boxes\n10 x 55 gallon drums","Paints, lacquers, stains, enamels ","Latex Paint Excludable Recyclable Material ","Loose-pack","NA","Recycle/ Reuse","Roll off and 55 gallon 1A2 drums",null,"NA","No cost for containers or transportation and recycling"]
[null,null,null,"Alternate Proposals",null,null,null,null,null,null,null,null,null,null,{"$f":"SUM(O5:O22)","v":0}]
[null,null,null,null,null,null,null,null,null,null,null,null,null,null,"Page Evaluation Subtotal"]
["Sub Category","Approx Amounts","Waste description","Typical Shipping Name","Packing Method","Packing Group","Disposal Method","Container Size Type","Turnkey cost","Unit of Measure","Additional comments"]

{"sheet":"Corrosives","index":3,"n_rows":25,"n_cols":17,"rows_kept":25,"cut":false,"hidden":false,"merged":[[19,6,20,6],[18,2,19,2],[19,16,20,16],[15,4,16,4],[15,5,16,5],[15,16,16,16],[17,5,20,5],[17,6,18,6],[17,16,18,16],[18,3,20,3],[18,4,20,4],[13,0,14,0],[15,0,20,0],[15,1,16,1],[15,2,16,2],[15,3,16,3],[17,1,20,1],[8,10,11,10],[4,1,7,1],[8,1,11,1],[4,6,7,6],[8,5,11,5],[8,4,11,4],[4,2,7,2],[8,2,11,2],[4,10,7,10],[8,6,11,6],[3,0,7,0],[8,0,11,0],[8,3,11,3],[4,4,7,4],[4,5,7,5],[4,3,7,3]]}
["Corrosives: Acids and Bases"]
["Sub Category","Approximate quantity","Waste description","Typical Shipping Name","Packing Method","PackingGroup","Disposal Method","Container Size & Type","Turnkey cost","Unit of Measure","Additional comments","Disposal Facility ID",null,"Evaluation Quantities","Evaluation Extension"]
[]
[" Acids, Organic","5 x 55 Gallon Drums","Acidic photochemical solutions containing acetic and  boric acids"," Corrosive Liquids Acidic Organic 8, UN3265","Bulk","PGll","Treatment (H010, H070, H120, H121)","55 gal 1H1",null,"Drum",null,null,null,5,{"$f":"I4*N4","v":0},null,{"$f":"_2.1.1*N4","v":{"$error":"#NAME?"}}]
[null,"4 x 55 Gallon Drums","Organic acids, acetic, inorganic acid in organic matricies, acidic metal preparation products ","Corrosive Liquids Acidic Organic 8, UN3265","Lab Pack","PG l/II","Destructive Incineration (H040, H050, H061)","5 gal 1H2",null,"Drum",null,null,null,1,{"$f":"I5*N5","v":0},null,{"$f":"_2.1.2*N5","v":{"$error":"#NAME?"}}]
[null,null,null,null,null,null,null,"14 gal 1H2",null,"Drum",null,null,null,1,0,null,{"$f":"_2.1.3*N6","v":{"$error":"#NAME?"}}]
[null,null,null,null,null,null,null,"30 Gal 1H2",null,"Drum",null,null,null,1,0,null,{"$f":"_2.1.4*N7","v":{"$error":"#NAME?"}}]
[null,null,null,null,null,null,null,"55 Gal 1H2",null,"Drum",null,null,null,1,0,null,{"$f":"_2.1.5*N8","v":{"$error":"#NAME?"}}]
["Acids, Inorganic ","185 x 55 gallon drums\n3 x 5 gallon drums","Acidic products including containing the following acids:  hydrochloric, sulfuric, phosphoric, sulfamic, glycolic, lactic, acetic maleic, ferric chloride nitric acid (leass than 20%) organic acids in solutions less than 20%","Corrosive Liquid Acidic Inorganic N.O.S 8, UN 3264","Lab Pack","PG l/ll","Destructive Incineration (H040, H050, H061)","5 gal 1H2",null,"Drum","Concentrated Acids such as >40% nitric will be packed separately according to DOT specifications",null,null,3,0,null,{"$f":"_2.1.6*N9","v":{"$error":"#NAME?"}}]
[null,null,null,null,null,null,null,"14 gal 1H2",null,"Drum",null,null,null,1,0,null,{"$f":"_2.1.7*N10","v":{"$error":"#NAME?"}}]
[null,null,null,null,null,null,null,"30 Gal 1H2",null,"Drum",null,null,null,1,0,null,{"$f":"_2.1.8*N11","v":{"$error":"#NAME?"}}]
[null,null,null,null,null,null,null,"55 Gal 1H2",null,"Drum",null,null,null,185,0,null,{"$f":"_2.1.9*N12","v":{"$error":"#NAME?"}}]
[]
["Bases, Organic ","4 x 55 Gallon Drums","Alkaline Photochemicals/Developers containing Hydroquinones and Sodium Hydroxide","Corrosive Liquids Basic Organic  N.O.S. 8, UN 3267","Bulk","PGll","Treatment (H010, H070, H120, H121)","55 gal 1H1",null,"Drum",null,null,null,4,0,null,{"$f":"_3.1.1*N14","v":{"$error":"#NAME?"}}]
[null,"10 x 55 Gallon Drums","Organic, Amine bases/ amine based epoxy hardeners/ catalysts, inorganic bases in organic matricies","Polyalkylamines N.O.S. UN 2374","Lab Pack","PGll","Destructive Incineration (H040, H050, H061)","55 gal 1H2",null,"Drum",null,null,null,10,0,null,{"$f":"_3.1.2*N15","v":{"$error":"#NAME?"}}]
["Bases, Inorganic ","160 x 55 gallon drums","Alkaline solutions, Hydroxide based cleaners Phosphate cleaners Unknowns > pH 10","Corrosive Liquids N.O.S. UN1760","Lab Pack","PGll","Treatment (H010, H070, H120, H121)","55 gal 1H2",null,"Drum",null,null,null,70,0,null,{"$f":"_3.1.3*N16","v":{"$error":"#NAME?"}}]
[null,null,null,null,null,null,"Destructive Incineration (H040, H050, H061)","55 gal 1H2",null,"Drum",null,null,null,90,0]
[null,"235 x 55 gallon drums"," ",null,null,"PGll","Landfill (H131, H132)","55 Gal 1A2 Lined ",null,"Drum",null,null,null,90,0,null,{"$f":"_3.1.4*N18","v":{"$error":"#NAME?"}}]
[null,null,"Basic solids including: cement, grout, plaster, lime, trisodium phosphate","Corrosive Solids, N.O.S UN 1759","Lab Pack/\nLoose-pack",null,null,"DOT Spec yard box",null,"Box",null,null,null,30,0]
[null,null,null,null,null,null,"Destructive Incineration (H040, H050, H061)","55 Gal 1A2 Lined ",null,"Drum",null,null,null,90,0,null,{"$f":"_3.1.5*N20","v":{"$error":"#NAME?"}}]
[null,null,null,null,null,null,null,"DOT Spec yard box",null,"Box",null,null,null,5,0]
[null,null," "," "," "," "]
[null,null,null,"Alternate Proposals",null,null,null,null,null,null,null,null,null,null,{"$f":"SUM(O4:O22)","v":0}]
[null,null,null,null,null,null,null,null,null,null,null,null,null,null,"Page Evaluation Subtotal"]
["Sub Category","Approx Amounts","Waste description","Typical Shipping Name","Packing Method","Packing Group","Disposal Method","Container Size Type","Turnkey cost","Unit of Measure","Additional comments"]

{"sheet":"Oxidizers + Reactive","index":4,"n_rows":34,"n_cols":15,"rows_kept":34,"cut":false,"hidden":false,"merged":[[24,7,26,7],[24,10,26,10],[4,11,5,11],[4,6,5,6],[13,6,16,6],[10,10,11,10],[18,7,19,7],[4,4,5,4],[4,13,5,13],[18,10,19,10],[4,5,5,5],[18,3,19,3],[18,4,19,4],[18,5,19,5],[13,3,16,3],[13,5,16,5],[13,4,16,4],[4,1,8,1],[6,2,8,2],[10,0,11,0],[4,2,5,2],[4,3,5,3],[21,0,26,0],[6,3,8,3],[6,6,8,6],[4,9,5,9],[4,10,5,10],[4,8,5,8],[6,4,8,4],[6,5,8,5],[4,7,5,7],[4,0,8,0],[13,0,16,0],[13,2,16,2],[13,1,16,1],[18,0,19,0],[18,1,19,1],[18,2,19,2],[21,1,23,1],[21,2,23,2],[21,3,23,3],[21,4,23,4],[21,10,23,10],[21,5,23,5],[21,6,23,6]]}
["Oxidizers and Reactives"]
[" "]
["Sub Category","Approximate quantity","Waste description","Typical Shipping Name","Packing Method","PackingGroup","Disposal Method","Container Size & Type","Turnkey cost","Unit of Measure","Additional comments","Disposal Facility ID",null,"Evaluation Quantities","Evaluation Extension"]
[]
["Neutral Oxidizers","55x 55 Gallon drums","Oxidizing liquids: dilute hydrogen peroxide, solutions of permanganate, perchlorate chromates, nitrates ","Oxidizing Substances Liquid, N.O.S. UN3139","Lab Pack","PGll","Treatment (H010, H070, H120, H121)","55 gal 1H2",null,"Drum",null,null,null,26,{"$f":"I5*N5","v":0}]
[null,null,null,null,null,null,null,null,null,null,null,null,null,null,{"$f":"I6*N6","v":0}]
[null,null,"Solid  Oxidizers: Nitrates, Bromates, Chlorates, Perchlorates, Permanganates, Swimming Pool Oxidizers","Oxidizing Substances Solid, N.O.S. UN1479","Lab Pack","PGII","Destructive Incineration (H040, H050, H061)","5 Gal 1H2",null,"Drum",null,null,null,1,0]
[null,null,null,null,null,null,null,"14 Gal 1H2",null,"Drum",null,null,null,1,0]
[null,null,null,null,null,null,null,"55 Gal 1H2",null,"Drum",null,null,null,27,0]
[]
["Organic Peroxides","5 x 5 Gal Drums","Containing Methyl Ethyl Ketone Peroxide","Organic Peroxide Type B Liquid, UN3101","Lab Pack","PG ll","Destructive Incineration (H040, H050, H061)","5 Gal 1H2",null,"Drum","Specify Unit (5 gallon drum or pound net or gross or other)",null,null,5,0]
[null," 5 x 5 Gal Drums","Containing Benzoyl Peroxide","Organic Peroxide Type E Solid, UN3108","Lab Pack","PG ll","Destructive Incineration (H040, H050, H061)","5 Gal 1H2",null,"Drum",null,null,null,5,0]
[]
["Oxidizing Acids","3 x 5 gal Drums","Oxidizing Acids: Perchloric, Chromic, Acidic Pool oxidizers, Hydrogen peroxide, Peroxyacetic Acid","Oxidizing Substances Liquid, Corrosive N.O.S., 5.1 UN3098\n\nOxidizing Substances Liquids, Toxic, N.O.S., 5.1 UN3099","Lab Pack","PG 1/ll","Destructive Incineration (H040, H050, H061)","5 Gal 1H2",null,"Drum",null,null,null,3,0]
[null,null,null,null,null,null,null,"14 Gal 1H2",null,"Drum",null,null,null,1,0]
[null,null,null,null,null,null,null,"30 Gal 1H2",null,"Drum",null,null,null,1,0]
[null,null,null,null,null,null,null,"55 Gal 1H2",null,"Drum",null,null,null,1,0]
[]
["Oxidizing Bases","100 x 55 Gal Drums","Hypochlorite Oxidizers: Bleach, pool chemicals ","Hypochlorites , Inorganic, N.O.S. 5.1 UN 3212\n\nHypochlorite Solutions  N.O.S. 8, UN 1791","Lab Pack","PG ll","Treatment (H010, H070, H120, H121)","55 Gal 1H2",null,"Drum",null,null,null,50,0]
[null,null,null,null,null,null,"Destructive Incineration (H040, H050, H061)",null,null,"Drum",null,null,null,50,0]
[]
["Reactive/\nExplosive/Misc","4 x 5  - Gallon drums","Water reactive materials including calcium carbide, powerded and finely divided metals","Varies","Lab Pack","PGI ","Destructive Incineration (H040, H050, H061)","5  - Gal 1H2",null,"Drum","Including Zone A or B  Inhalation Hazards",null," ",4,0]
[null,null,null,null,null,null,null,"14  - Gal 1H2",null,"Drum",null,null," ",null,0]
[null,null,null,null,null,null,null,"30  - Gal 1H2",null,"Drum",null,null," ",null,0]
[null,"22 x 5 gallon drums","Ammunition, small arms, up to 50 cal   and shotgun shells  up to 12 gauge, primers","Cartridges, Small Arms UN0012  1.4S","Loose-Pack","PGII","Destructive Incineration (H040, H050, H061)","Inner:Fiber or plastic  boxes\nOuter: 5 gal 1H2 \n\n30KG limit",null,"Drum","Specify any special packing requirements here",null,null,22,0]
[null,"4 x 5 gallon drum","Signaling pyrotechnics, hand held, flares, smoke, etc","Signal Devices, Hand UN0191 1.4G\nSignal Smoke UN0197 1.4G or similar","Loose-Pack","PGII","Destructive Incineration (H040, H050, H061)",null,null,"Drum",null,null,null,4,0]
[null,"4 x 5 gallon drum","Signaling pyrotechnics, Aerial flares: 12 gage, 25mm, cartridge type flares, rocket/parachute flares","Articles Pyrotechnic, UN0431 1.4G  or similar","Loose-Pack","PGII","Destructive Incineration (H040, H050, H061)",null,null,"Drum",null,null,null,4,0]
[]
[null,null,null,null,null,null,null,null,null,null,null,null,null,null,{"$f":"SUM(O5:O28)","v":0}]
[null,null,null,null,null,null,null,null,null,null,null,null,null,null,"Page Evaluation Subtotal"]
[]
[null,null,null,"Alternate Proposals"]
[]
["Sub Category","Approx Amounts","Waste description","Typical Shipping Name","Packing Method","Packing Group","Container Size Type","Disposal Method","Turnkey cost","Unit of Measure","Additional comments"]

{"sheet":" PCBs + Asbestos","index":5,"n_rows":19,"n_cols":17,"rows_kept":19,"cut":false,"hidden":false,"merged":[[4,3,5,3],[12,5,14,5],[12,10,14,10],[4,10,5,10],[7,3,10,3],[7,6,8,6],[9,6,10,6],[7,5,10,5],[7,4,10,4],[4,0,5,0],[4,2,5,2],[7,2,10,2],[7,1,10,1],[7,0,10,0],[4,1,5,1],[12,0,14,0],[12,1,14,1],[12,2,14,2],[12,3,14,3],[12,4,14,4]]}
["PCBs and Asbestos"]
[]
["Sub Category","Approximate quantity","Waste description","Typical Shipping Name","Packing Method","PackingGroup","Disposal Method","Container Size & Type","Turnkey cost","Unit of Measure","Additional comments","Disposal Facility ID",null,"Evaluation Quantities","Evaluation Extension"]
[]
["PCB containing Paint","6 x 55 gal drum","Oil based paint","Paint, containing PCB's  < 500 PPM","Bulk","PG ll","Destructive Incineration (H040)","55 gal 1A2",null,"Drum","Drums originally shipped as Paint UN 1263 and later fount to contain PCB's in excess of allowable limits",null,null,3,{"$f":"I5*N5","v":0},null,{"$f":"_5.1.1*N5","v":{"$error":"#NAME?"}}]
[null,null,null,null,"Bulk","PGll","Destructive Incineration (H040)","55 gal 1A2",null,"Drum",null,null,null,3,{"$f":"I6*N6","v":0},null,{"$f":"_5.1.2*N6","v":{"$error":"#NAME?"}}]
[null,null," "]
["PCB  Ballasts","20 x 55 Gal Drums\n","Fluorescent light ballasts and other capacitors containing PCBs","Polychlorinated Biphenyls,9, UN2315","Loose-pack","PGll","Destructive Incineration (H040)","55 gal 1A2",null,"Drum",null,null,null,10,0,null,{"$f":"_5.1.3*N8","v":{"$error":"#NAME?"}}]
[null,null,null,null,null,null,null,"30 Gal 1A2",null,"Drum",null,null,null,1,0,null,{"$f":"I9*N9","v":0}]
[null,null,null,null,null,null,"Landfill (H131, H132)","55 gal 1A2",null,"Drum",null,null,null,10,0,null,{"$f":"_5.1.5*N10","v":{"$error":"#NAME?"}}]
[null,null,null,null,null,null,null,"30 Gal 1A2",null,"Drum",null,null,null,1,0,null,{"$f":"_5.1.6*N11","v":{"$error":"#NAME?"}}]
[null,null,null,null,null,"  "," "]
["Asbestos","1 x 55 gallon drum","Asbestos tile, tape, clad pipe, duct, millboard\nAsbestos in bottles or other containers","Asbestos, 9, NA2122","Bulk","PGlll","Landfill (H131, H132)","5 gallon drum",null,"Drum","The program does not normally accept abestos - but occasionally a piece of pipe, duct, millboard, or insulation is accepted inadvertently",null,null,3,0]
[null,null,null,null,null,null,"Landfill (H131, H132)","55 gallon drum",null,"Drum",null,null,null,3,0]
[null,null,null,null,null,null,"Landfill (H131, H132)","bulk, by cubic yard, packaged in plastic sheeting",null,"Cubic Yard",null,null,null,1,0]
[]
[null,null,null,"Alternate Proposals",null,null,null,null,null,null,null,null,null,null,{"$f":"SUM(O5:O16)","v":0}]
[null,null,null,null,null,null,null,null,null,null,null,null,null,null,"Page Evaluation Subtotal"]
["Sub Category","Approx Amounts","Waste description","Typical Shipping Name","Packing Method","Packing Group","Disposal Method","Container Size Type","Turnkey cost","Unit of Measure","Additional comments"]

{"sheet":"Aerosols & Cylinders","index":6,"n_rows":26,"n_cols":17,"rows_kept":26,"cut":false,"hidden":false,"merged":[[20,0,21,0],[17,10,18,10],[14,10,15,10],[20,10,21,10],[11,10,12,10],[11,3,12,3],[11,6,12,6],[14,6,15,6],[20,6,21,6],[17,6,18,6],[14,4,15,4],[11,2,12,2],[20,4,21,4],[20,5,21,5],[17,0,18,0],[11,4,12,4],[20,1,21,1],[20,2,21,2],[20,3,21,3],[17,1,18,1],[4,10,5,10],[8,6,9,6],[8,5,9,5],[8,4,9,4],[8,10,9,10],[6,10,7,10],[4,6,5,6],[6,6,7,6],[14,0,15,0],[14,2,15,2],[14,3,15,3],[14,5,15,5],[17,5,18,5],[17,3,18,3],[17,2,18,2],[14,1,15,1],[17,4,18,4],[4,0,7,0],[4,3,7,3],[4,4,7,4],[4,5,7,5],[11,0,12,0],[8,0,9,0],[8,1,9,1],[4,1,7,1],[11,5,12,5],[11,1,12,1],[4,2,7,2],[8,2,9,2],[8,3,9,3]]}
["Aerosols and Compressed Gases"]
[" "]
["Sub Category","Approximate quantity","Waste description","Typical Shipping Name","Packing Method","Packing Group","Disposal Method","Container Size & Type",null,"Unit of Measure","Additional comments","Disposal Facility ID",null,"Evaluation Quantities","Evaluation Extension"]
[]
["Flammable Aerosols","150 x Meterpack box","Paints and coatings, solvents, flammable cleaners,","Aerosols 2.1 UN 1950","Loose-pack","PG ll","Alternative Fuels (H050, H061)","55 1A2",null,"Drum",null,null,null,25,{"$f":"I5*N5","v":0},null,{"$f":"_6.1.1*N5","v":{"$error":"#NAME?"}}]
[null,null,null,null,null,null,null,"DOT spec meterpack",null,"Box",null,null,null,60,{"$f":"I6*N6","v":0},null,{"$error":"#NAME?"}]
[null,null,null,null,null,null,"Destructive Incineration (H040, H050, H061)","55 1A2",null,"Drum",null,null,null,10,0,null,{"$error":"#NAME?"}]
[null,null,null,null,null,null,null,"DOT spec meterpack",null,"Box",null,null,null,60,0,null,{"$error":"#NAME?"}]
["Flammable Compressed Gases","200 x 55 gallon drums","Propane, Butane, Mapp gas, and other flammable fuel gases in pressurized containers under 1 liter in size","Compressed or Liquified Gases Flammable N.O.S. 2.1 UN 1954","Loose-pack","PG II","Alternative Fuels/Destructive Incineration (H040, H050, H061)","55 1A2",null,"Drum",null,null,null,200,0,null,{"$error":"#NAME?"}]
[null,null,null,null,null,null,null,"DOT spec meterpack",null,"Box",null,null,null,10,0,null,{"$error":"#NAME?"}]
[]
["Corrosive Aerosols",0,"Alkaline Oven/Grill cleaners /Acid Wheel Cleaners","Aersosols 2.2 UN 1950","Loose-pack","PG II/III","Destructive Incineration (H040, H050, H061)","55 1A2",null,"Drum",null,null,null,3,0,null,{"$f":"_6.1.5*N12","v":{"$error":"#NAME?"}}]
[null,null,null,null,null,null,null,"DOT spec meterpack",null,"Box",null,null,null,1,0,null,{"$f":"_6.1.6*N13","v":{"$error":"#NAME?"}}]
[]
["Non Flammable Aerosols",0,"Misc non flammable Aerosols","Aerosols 2.2 UN1950","Loose-pack","PG II/III","Destructive Incineration (H040, H050, H061)","55 1A2",null,"Drum",null,null,null,3,0,null,{"$f":"_6.1.7*N15","v":{"$error":"#NAME?"}}]
[null,null,null,null,null,null,null,"DOT spec meterpack",null,"Box",null,null,null,1,0,null,{"$f":"_6.1.8*N16","v":{"$error":"#NAME?"}}]
[null,null," "]
["Poison Aerosols","75 x 55 gallon drums","Pesticide aersosol","Insecticide Gases Flammable N.O.S. 2.1 UN1968","Loose-pack","PG II","Destructive Incineration (H040, H050, H061)","55 1A2",null,"Drum",null,null,null,75,0,null,{"$f":"_6.1.9*N18","v":{"$error":"#NAME?"}}]
[null,null,null,null,null,null,null,"DOT spec meterpack",null,"Box",null,null,null,1,0,null,{"$f":"_6.1.10*N19","v":{"$error":"#NAME?"}}]
[]
["Misc Compressed gases","VARIES","Various refrigerant gases in DOT 39 NRC cylinders up to 5 gallons water capacity in size.  Various adhesives and expanding foams in 1-5 gallon DOT39NRC cylinders (both parts)\nLecture bottles of various gases, oxygen, calibration gases, may be flammable, oxidizer, inert or other gases (not inlcuding any PG1 Zone A or B poision gases )","Varies may include:\nOxygen\nNitrogen\nAcetylene\nRefrigerant\nLiquid under pressure\nArgon\nCarbon Dioxide\nHelium","Overpacked in 55 gallon drums or DOT spec cylinders shrink wrapped on a pallet","PGII","Destructive Incineration (H040, H050, H061)","1A2 55 gal drum",null,"Drum","List pricing and specifiations below as needed",null,null,3,0,null,{"$f":"_6.1.11*N21","v":{"$error":"#NAME?"}}]
[null,null,null,null,null,null,null,"Loose,  on a pallet, overpacked in drum",null,"Per cylinder",null,null,null,12,0,null,{"$f":"_6.1.11*N22","v":{"$error":"#NAME?"}}]
[]
[null,null,null,"Alternate Proposals",null,null,null,null,null,null,null,null,null,null,{"$f":"SUM(O5:O23)","v":0}]
[null,null,null,null,null,null,null,null,null,null,null,null,null,null,"Page Evaluation Subtotal"]
["Sub Category","Approx Amounts","Waste description","Typical Shipping Name","Packing Method","Packing Group","Disposal Method","Container Size Type",null,"Unit of Measure","Additional comments"]

{"sheet":"Reclaimable","index":7,"n_rows":35,"n_cols":17,"rows_kept":35,"cut":false,"hidden":false,"merged":[[4,2,5,2],[4,3,5,3],[4,4,5,4],[4,5,5,5],[4,0,5,0],[4,1,5,1],[14,3,16,3],[9,0,12,0],[14,1,15,1],[21,0,25,0],[27,6,30,6],[27,0,30,0],[27,2,30,2],[24,2,25,2],[24,4,25,4],[18,0,19,0],[18,1,19,1],[14,0,16,0],[18,2,19,2],[18,3,19,3],[27,10,30,10],[27,3,30,3],[27,1,30,1],[21,2,22,2],[21,1,25,1],[28,7,30,7],[21,10,25,10],[21,3,25,3],[18,10,19,10],[21,5,25,5],[24,6,25,6],[21,6,22,6],[21,4,23,4]]}
["Reclaimable Materials"]
[]
["Sub Category","Approximate quantity","Waste description","Typical Shipping Name","Packing Method","Packing Group","Disposal Method","Container Size & Type","Turnkey cost","Unit of Measure","Additional comments","Disposal Facility ID",null,"Evaluation Quantities","Evaluation Extension"]
[]
["Antifreeze","60 x 55 Gallon Drums","Spent glycol based automotive antifreeze/water mixtures","Used Antifreeze Non RCRA Hazadous Waste Liquid","Bulk","N/A","Recycle H039","55 1A2",null,"Drum",null,null,null,30,{"$f":"I5*N5","v":0},null,{"$f":"_7.1.1*N5","v":{"$error":"#NAME?"}}]
[null,null,null,null,null,null,"Destructive Incineration (H040, H050, H061)","55 1A2",null,"Drum",null,null,null,30,{"$f":"I6*N6","v":0},null,{"$f":"_7.1.1*N6","v":{"$error":"#NAME?"}}]
[]
["Auto Batteries/SLA batteries ","55000 lbs","Lead acid wet cell batteries and SLA Lead batteries","Bill of lading","Loose-pack","N/A","Recycle H010","Vendor supplied secondary containment \"tub skid\"",null,"Per pound","Stored in 1 cy yard plastic tubskids approximately 75 units  Use - Red text to indicate a per unit credit paid to the county",null,null,55000,0,null,{"$f":"_7.1.2*N8","v":{"$error":"#NAME?"}}]
[]
["Fluorescent and\nMercury containing lamps","approximately 580,000 linear feet of lamps","Straight Fluorescent tubes -3 to 12 foot ","Universal Waste Lamps   Bill of Lading","Loose-pack","N/A","Recycle H010","Fiber Drum/Box",null,"Per Linear Foot","Price Per linear foot for tubes ",null,null,100000,0,null,{"$f":"I10*N10","v":0}]
[null,"Approximately 20,000 lbs of cfl's and other small lamps","Compact Fluorescent, Misc. small lamps ","Universal Waste Lamps   Bill of Lading","Loose-pack","N/A","Recycle H010","Fiber Drum/Box",null,"Per pound",null,null,null,20000,0]
[null,"Approximately  2200 lbs of HID lamps","HID Mercury lamps ","Universal Waste Lamps   Bill of Lading","Loose-pack","N/A","Recycle H010","Fiber Drum/Box",null,"Per pound",null,null,null,1000,0]
[null,"20 x 55 gallon drums","Broken lamps","Environmentally Hazardous substance, solid 9","Loose-pack","N/A","Recycle H010","55 1A2",null,"Drum",null,null,null,20,{"$f":"I13*N13","v":0}]
[]
["Motor Oil","6000 Gallons","Used motor vehicle lubricating oil, transmission fluid","Used Motor oil\nNON RCRA Hazadous Waste Liquid","Bulk","N/A","Recycle H039","1000 gallon tank",null,"Per gallon","Per gallon to be pumped from 1000 gallon storage tank at each facility",null,null,6000,0,null,{"$f":"I15*N15","v":0}]
[null,null,"Used motor vehicle lubricating oil, transmission fluid",null,"Bulk","N/A","Recycle H039","55 gallon drum",null,"Drum",null,null,null,25,0]
[null,0,"contaminated Used motor oil",null,"Bulk","N/A","Incineration H040","1000 Gallon tank",null,"Per gallon","Contaminated with over 2500 ppm organic halogen compounds (Not PCB's)",null,null,800,0,null,{"$f":"I17*N17","v":0}]
[]
["Oil filters","30 x 55 gallon drums","Auto and truck oil and fuel filters (not crushed)","Non RCRA Hazardous Waste Solid/Liquid","Loose-pack","N/A","Recycle H010","55 gal 1A2",null,"Drum","drained uncrushed oil filters",null,null,15,0,null,{"$f":"I19*N19","v":0}]
[null,null,null,null,"Loose-pack","N/A","Incineration H040","55 gal 1A2",null,"Drum",null,null,null,15,0]
[]
["Mercury","400 pounds net weight","Mercury contained in manufactured  articles, mercury devices , flowmeters, mirrors, medical & laboratory equipment ","Mercury 8, UN2809\nMercury contained in manufactured articles 8, UN2809","Loose-pack","PGlll","Recycle H010","5 gal 1H2",null,"Per pound Net","Charges to be based on manifested net weight  Evaluation quantities is in pounds net wt as may be listed",null,null,200,0,null,{"$f":"I22*N22","v":0}]
[null,null,null,null,null,null,null,"55 gallon 1A2",null,"Per pound Net",null,null,null,200,0]
[null,null,"Mercury in containers",null,null,null,"Treatment H110","5 gal 1H2",null,"Per pound Net",null,null,null,200,0,null,{"$f":"I24*N24","v":0}]
[null,null,"Mercury contaminated materials, spill clean up. Amalgams",null,"Bulk",null,"Treatment H110","5 gal 1H2",null,"Per pound Net",null,null,null,200,0]
[null,null,null,null,null,null,null,"55 gallon 1A2",null,"Per pound Net",null,null,null,200,0]
[]
["Propane","1000 Tanks  (90% are 20Lb/ 5 gallon tanks)  most are empty or have minimal contents","Cylinders of Propane with contents","Propane UN1075","1 Lb Cyl","N/A","Propane Reuse/ Cylinder Revalve Recert Reuse or Metals Recycling","55 gallon 1A2",null,"Drum",null,null,null,100,0,null,{"$f":"I28*N28","v":0}]
[null,null,null,null,"5-15 Lb Cyl","N/A",null,"Loose or Shrink Wrapped on palletts",null,"Per cylinder",null,null,null,200,0,null,{"$f":"I29*N29","v":0}]
[null,null,null,null,"20 Lb Cylinder","N/A",null,null,null,"Per cylinder",null,null,null,1000,0]
[null,null,null,null,"20-50 Lb Cyl","N/A",null,null,null,"Per cylinder",null,null,null,100,0,null,{"$f":"I31*N31","v":0}]
[]
[null,null,null,"Alternate Proposals",null,null,null,null,null,null,null,null,null,null,{"$f":"SUM(O5:O31)","v":0}]
[null,null,null,null,null,null,null,null,null,null,null,null,null,null,"Page Evaluation Subtotal"]
["Sub Category","Approx Amounts","Waste description","Typical Shipping Name","Packing Method","Packing Group","Disposal Method","Container Size Type","Turnkey cost","Unit of Measure","Additional comments"]

{"sheet":"Non-RCRA & Other","index":8,"n_rows":34,"n_cols":15,"rows_kept":34,"cut":false,"hidden":false,"merged":[[3,1,12,1],[3,0,12,0],[24,5,27,5],[24,0,27,0],[24,1,27,1],[23,0,23,9],[14,2,17,2],[14,3,17,3],[14,4,17,4],[16,5,17,5],[28,0,28,9],[14,7,15,7],[16,7,17,7],[3,4,10,4],[3,5,10,5],[11,4,12,4],[11,5,12,5],[26,6,27,6],[24,2,27,2],[14,5,15,5],[14,1,22,1],[18,2,20,2],[18,3,20,3],[14,0,22,0],[24,3,27,3],[24,4,27,4],[11,10,12,10],[11,3,12,3],[21,2,22,2],[21,3,22,3],[21,4,22,4],[21,5,22,5],[18,4,20,4],[18,5,20,5],[3,2,12,2]]}
[" Other Materials"]
["Sub Category","Approximate quantity","Waste description","Typical Shipping Name","Packing Method","Packing Group","Disposal Method","Container Size & Type","Turnkey cost","Unit of Measure","Additional comments","Disposal Facility ID",null,"Evaluation Quantities","Evaluation Extension"]
[]
["Household Batteries","150 x 55 gal drums\n24 x 5 gallon drums","Universal Waste batteries consisting of Carbon Zinc Alkaline/ Lithium/Lithium Ion/Silver Oxide/Nickel Metal Hydride/Zinc Air/ Nickel Cadimum/ and small (<40AH Sealed Lead Acid non spillable gel cell batteries)","Alkaline/ Carbon zinc/ Zinc Air primary dry cells","Loose-pack","PGll","Recycle (H010)","55 Gal 1A2",null,"Drum",null,null,null,150,{"$f":"N4*I4","v":0}]
[null,null,null,"Nickel cadmium, Nickel metal hydride, Silver Oxide Rechargeable ",null,null,"Recycle (H010)","55 Gal 1A2",null,"Drum",null,null,null,10,{"$f":"N5*I5","v":0}]
[null,null,null,"Sealed Lead Acid Rechargable ",null,null,"Recycle (H010)","55 Gal 1A2",null,"Drum",null,null,null,10,0]
[null,null,null,"Lithium ion Recharbable   (Taped terminals)",null,null,"Recycle (H010)","14-16 Gal 1A2",null,"Drum",null,null,null,20,0]
[null,null,null,"Nickel Cadmium wet cell rechargable batteries",null,null,"Recycle (H010)",null,null,"Drum",null,null,null,10,0]
[null,null,null,"Lithium Primary  (Taped terminals)",null,null,"Recycle (H010)","30 Gal 1A2",null,"Drum",null,null,null,1,0]
[null,null,null,"Lithium Primary  (Taped terminals)",null,null,"Recycle (H010)","55 Gal 1A2",null,"Drum",null,null,null,4,0]
[null,null,null,"Lithium Primary  (Taped terminals)",null,null,"Destructive Incineration (H040, H050, H061)","55 Gal 1A2",null,"Drum",null,null,null,1,0]
[null,null,null,"Damaged, recalled Lithium ion rechargable batteries (Taped terminals)","Specify In Alternate Methods below",null,"Recycle (H010)","30 Gal 1A2",null,"Drum","List packaging restrictions or specifications in Alternative Proposal Section",null,null,5,0]
[null,null,null,null,null,null,"Destructive Incineration (H040, H050, H061)","5 gallon ",null,"Drum",null,null,null,10]
[null,null," "]
["Class 9/ Non RCRA","460 x 55 gallon drums","Fertilizers, soil amendments, non-RCRA solids or liquids","Non RCRA Hazardous Waste Solid/Liquid\nNon-Hazardous Material","Bulk, Loose-pack or Lab Pack","N/A","Landfill (H131, H132)","55 Gal 1H2",null,"Drum",null,null,null,50,0]
[null,null,null,null,null,null,"Destructive Incineration (H040, H050, H061)",null,null,"Drum",null,null,null,50,0]
[null,null,null,null,null,"N/A","Landfill (H131, H132)","DOT spec meterpack",null,"Box",null,null,null,25,0]
[null,null,null,null,null,null,"Destructive Incineration (H040, H050, H061)",null,null,"Box",null,null,null,25,0]
[null,null,"PPE, absorbents, soil and debris contminated with petroleum, volatile organic compounds, pesticides","Non RCRA Hazardous Waste Solid\nHazardous Waste Solid, n.o.s.\nEnvironmentally hazardous substances solid, N.O.S.","Bulk","N/A","Landfill (H131, H132)","55 Gal 1H2",null,"Drum",null,null,null,50,0]
[null,null,null,null,null,null,"Destructive Incineration (H040, H050, H061)","55 Gal 1H2",null,"Drum",null,null,null,50,0]
[null,null,null,null,null,null,"Destructive Incineration (H040, H050, H061)","DOT spec meterpack",null,"Box",null,null,null,30,0]
[null,null,"Lead paint chips/solid media contaminated with hazardous metals","Environmentally hazardous substances solid, N.O.S.","Bulk","PGll","Landfill (H110, H131, H132)","DOT spec meterpack",null,"Box",null,null,null,10,0]
[null,null,null,null,null,null,"Landfill (H110, H131, H132)","55 Gal 1H2",null,"Drum",null,null,null,50,0]
[]
["Non-PCB  Ballasts","10 x 55 Gal Drums\n","Fluorescent light ballasts and other capacitors","Non-RCRA Hazardous Waste Solid","Loose-pack","NA","Destructive Incineration (H040)","55 gal 1A2",null,"Drum",null,null,null,5,0]
[null,null,null,null,null,null,"Recycle (H010)","55 gal 1A2",null,"Drum",null,null,null,3,0]
[null,null,null,null,null,null,"Landfill (H131, H132)","55 gal 1A2",null,"Drum",null,null,null,5,0]
[null,null,null,null,null,null,null,"30 Gal 1A2",null,"Drum",null,null,null,3,0]
[]
["Aqueous Liquids","10 x 55 Gal Drums","Surfactants, aqueous mixtures of flammable and non-DOT regulated material, oil and water mixtures, non-corrosive cleaning or coating proucts","Non RCRA Hazardous Waste Liquid","Bulk","NA","Destructive Incineration (H040, H050, H061)","55 gal 1A2",null,"Drum",null,null,null,10,0]
[]
[null,null,null,"Alternate Proposals",null,null,null,null,null,null,null,null,null,null,{"$f":"SUM(O4:O31)","v":0}]
[null,null,null,null,null,null,null,null,null,null,null,null,null,null,"Page Evaluation Subtotal"]
["Sub Category","Approx Amounts","Waste description","Typical Shipping Name","Packing Method","Packing Group","Disposal Method","Container Size Type","Turnkey cost","Unit of Measure","Additional comments"]

{"sheet":"Electronic Waste","index":9,"n_rows":15,"n_cols":13,"rows_kept":15,"cut":false,"hidden":false,"merged":[[8,0,9,0],[6,1,7,1],[4,1,5,1],[4,8,7,8],[32,9,33,10],[4,2,5,2],[4,5,7,5],[8,1,9,1],[8,2,9,2],[8,3,9,3],[8,5,9,5],[8,8,9,8]]}
["Universal Waste Electronic Devices"]
[]
["Sub Category","Approximate amounts","Waste description","Typical Shipping Name","Packaging ","Disposal Method",null,"Turnkey (Credit) or Cost","Additional comments","Disposal Facility ID",null,"Evaluation Quantities","Evaluation Extension"]
[]
["CEW Cathode Ray tubes (CRTs)","150,000 lbs.","Consumer electronic devices subject to  SB20/50 Reimbursment (Covered Electronic Waste, CEW)\nCRT's>4\"  LCD's Unibody computers with CRT/LCD, Laptops etc  ","Universal Waste - Electronic Devices, Universal Waste - CRTs","Vendor supplied packaging","Recycled by E-Steward certified recycler (H010)","9.1.1",null,"The program has limited storage space, does not use forklifts or other powered material handling equipment. Pick ups from each site will be needed at least weekly.  Packaging will need to be provided in advance and/or replaced with weekly pick up service.",null,null,100000,{"$f":"L5*H5","v":0}]
["CEW non-CRT (Flat screens)",null,null,"Universal Waste - Electronic Devices, Universal Waste - Non-CRT CEW - \"Flat Screens\"","Vendor supplied packaging",null,null,null,null,null,null,50000,0]
["Computer CPU's","350,000 lbs.","Computer processor units - no CRT  ","Universal Waste - Electronic Devices","Vendor supplied packaging",null,"9.1.1",null,null,null,null,50000,0]
["Misc consumer electronics",null,"Consumer electronics: Including but not limited to  stereo & audio equipment, computer parts & peripherals, cables, expansion cards  printers, kitchen electronics, microwave ovens, electronic clocks, copy machines, smok detectors that do not contain radioactive materials, medical devices, telecom equipment, small household appliances. ","Universal Waste - Electronic Devices","Vendor supplied packaging",null,"9.1.1",null,null,null,null,300000,0]
["Smoke detectors that contain radioactive material","1000 units","Smoke detctors and single unit alarms that contain Americium 241 up to 5 microcuries per device","Universal Waste - Electronic Devices, UN2910","Vendor supplied packaging up to 50 pounds\n per outer container","Landfill of radioactive materials at NRC approved facility, recycling of electronic waste","9.1.1",null,"Price per smoke detector unit, or per vendor supplied packaging or third party pre-aid cshipping container.  List Capacity in units for each packaging in Alternate Proposals below. ",null,null,10,0]
[null,null,null,null,"Vendor supplied packaging up to 150 pound\nper outer container",null,null,null,null,null,null,4,0]
[]
[null,null,null,"Alternate Proposals",null,null,null,null,null,null,null,null,{"$f":"SUM(M5:M11)","v":0}]
[null,null,null,null,null,null,null,null,null,null,null,null,"Page Evaluation Subtotal"]
["Sub Category","Approx Amounts","Waste description","Typical Shipping Name","Packing Method","Container Size Type","Turnkey cost","Unit of Measure"]
["Describe packaging methods and containers offered.  Describe any restrictions or preferences for separation of electronics"]

{"sheet":"Labor","index":10,"n_rows":13,"n_cols":10,"rows_kept":13,"cut":false,"hidden":false,"merged":[[7,0,7,6],[8,0,8,6],[10,0,10,6],[11,0,11,6],[0,1,0,2]]}
["Labor & Miscellaenous","LABOR"]
[]
["Laborer Level","Typical duties","Qualifications training and equipment to be provided","Approximate quantity, hours","Per Hour Cost","Comments","Labor provided by biddor or subcontractor(s) or both",null,"Evaluation Quantities","Evaluation Extension"]
["Hazardous Materials Specialist ","Under the general supervision of County staff: unload vehicles, consolidate applicable waste; sort waste per profile acceptabiility, characterize and classify by EPA and DOT regulations, pack per vendor and County lab pack protocols; label and mark containers, prepare shipping documentation and other records","40 hr Hazwoper up-to-date annual refresher trained; DOT transportation training;/BS or BA College (4 year) degree in field related to hazardous materials management; qualified under vendor trainig program to operate independently and to prepare lab  pack and waste stream containers for shipment; respiratory protection training, medical and fit test, issued full face APR respirator, clean shaven, in compliance with 29CFR1910.120 under medical surveillance program. Provided with: steel toed boots; level D garments; safety glasses including prescription safety spectacles if worker uses vision correction to read",50,null,"To be used as temporary replacement of permanent county staff\nMinimum 4 hour assigment, Tuesday through Saturday workweek",null,null,50,{"$f":"I4*E4","v":0}]
["Senior Hazardous Materials Laborer","Under direct oversight of County staff: unload resident and business vehicles; consolidate segregated wastes; keep site organized, clean and maintained; lift and handle waste, materials and containers; close containers; other tasks as directed","40 hr Hazwoper and DOT transportation training up tp date; has current respiratory protection training, issued  Full face APR, clean shaven and in compliance with 29CFR1910.120 under medical surveillance program; provided with steel toed boots, Level D garments, safety glasses including prescription safety spectacles if worker uses vision correction to read",1000,null,"Highly experienced (5+ years working  at HHW facilities & events) Laborer.  Must be contractor permanent staff, not 3rd party temporary workers.",null,null,1000]
["Hazardous Materials Laborer","Under direct oversight of County staff: unload resident and business vehicles; consolidate segregated wastes; keep site organized, clean and maintained; lift and handle waste and materials and containers; close containers; other tasks as directed","40 hr Hazwoper and DOT transportation training up tp date; has current respiratory protection training, issued  Full face APR, clean shaven and in compliance with 29CFR1910.120 under medical surveillance program; provided with steel toed boots, Level D garments, safety glasses including prescription safety spectacles if worker uses vision correction to read",10000,null,"Minimum 4 hour assigment, Tuesday through Saturday work week",null,null,10000,{"$f":"I6*E6","v":0}]
[]
[" Biddor will provide documentation of worker qualification to perform work (HAZWOPER, medical clearance for working with HW and use of respirator, DOT Training, respiratory protection, BBP) on request which may be before assignment or within one work day of request"]
["If providing labor through a subcontractor state here the name and address of the subcontractor(s) and the approximate percentage of the work to be done by the proposed subcontractor: "]
[]
[]
[null,null,null,null,null,null,null,null,null,{"$f":"SUM(J4:J11)","v":0}]
[null,null,null,null,null,null,null,null,null,"Page Evaluation Subtotal"]

{"sheet":"One Day Events","index":11,"n_rows":16,"n_cols":7,"rows_kept":16,"cut":false,"hidden":false,"merged":[[4,0,4,1],[5,0,5,1],[6,0,6,1],[7,0,7,1]]}
["Temporary HHW Collection Service",null,"TemporaryEvents"]
[]
["Description",null,"Approximate quantity","Turnkey cost","Additional comments","Evaluation Quantities","Evaluation Extension"]
[]
["500 Car Temporatry HHW Collection Event\nTurnkey service during one-day HHW collection event with integrated collection of Paintcare eligible products under biddor PaintCare contract, and collection of Universal Waste Electronic Devices and other electronic waste.  Quote for all costs for mobilization , event performance and demobilization.  Turnkey services to include: \nReceive waste from 500 resident vehiclle visits - no limit on quantities per vehicle\nPrepare and get approval of permit from relevant CUPA\nPerform all site preparation, mobilization/demobilization, provide qualified labor, equipment, sanitation facilities, trash annd recyclables management, unknown field analysis \nAct as generator for waste packaged at the event (subject to County authorization) \nNot included in turnkey services:\nPublicity, public outreach, scheduling and documentation of participation\nTransportation and disposal of waste: biddor will manage amnd charge at rates offered to PHHWCFs elsewhere in this proposal\nOff site traffic management and public road marking",null,"up to 12 event per year",null,null,10,{"$f":"F5*D5","v":0}]
["700 Car Temporary HHW Collection Event\nTurnkey services as described above for an event receiving waste from 700 resident vehicle visits",null,"up to 12 event per year",null,null,1,{"$f":"F6*D6","v":0}]
["900 Car Temporary HHW Collection Event\nTurnkey services as described above for an event receiving waste from 900 resident vehicle visits",null,"up to 3 events per year",null,null,1,{"$f":"F7*D7","v":0}]
["Each Resident Vehicle  at a Temporary HHW Collection Event - In Addition to above pricing\nCosts in addition to those described above for services required to serve each resident vehicle visit in addition to the amounts quoted above.",null,"As needed per event",null,null,300,{"$f":"F8*D8","v":0}]
[null,null,null,null,null,null,{"$f":"SUM(G5:G8)","v":0}]
[null,null,null,null,null,null,"Page Extension Subtotal"]
[]
[" "]
[]
[" "]
[]
[" "]

{"sheet":"Door-to-Door Program","index":12,"n_rows":11,"n_cols":4,"rows_kept":11,"cut":false,"hidden":false,"merged":[]}
[]
["Mobile HHW Collection Service","Door-to-Door Services"]
["Services listed on this page are optional and not required to complete the bid.  If pricing is submitted it will be considered firm according to the terms and conditions of the bid ."]
["Any pricing submitted will not be considered part of the price evaluation, but will be considered as part of the waste management services evaluation."]
[]
["Description","Quantity","Turnkey cost","Additional comments"]
[]
["\"Classic\" Door to Door program, serving up to 25 individual households per vehicle per day - collecting up to 5000 Lb. per vehicle per day \nHHW program to provide all outreach, customer contact, and routing.\nContractor to provide vehicle, appropriate labor, packaging, consumables, safety equipment and unloading at the permanent HHW facility. Charges for packaging materials at rates specified elswhere in this document.","PER vehicle/crew per day"]
["Hybrid Door to door event at a multifamily development, or \" Toxic Block Party\" serving up to 50 households per vehicle/day, collecting  up to 5000 lbs per vehicle per day.\nHHW program to provide all outreach, customer contact, and routing.\n\n\nContractor to provide vehicle, appropriate labor, packaging, consumables, safety equipment and unloading at the permanent HHW facility. Charges for packaging materials at rates specified elswhere in this document.","PER vehicle/crew per day"]
["Disaster Door-to-Door Event\n\nContractor to provide: site evaluation, preparation of work plan and site specific health and safety plan, vehicle, appropriate labor, packaging, consumables, safety equipment and unloading at the permanent HHW facility.  Charges for packaging materials and supplies at rates specified elswhere in this document.","Site evaluation/preparation of site specific work plan and health and safety plan "]
[null,"PER vehicle/crew per day"]

{"sheet":"Training & Supplies","index":13,"n_rows":42,"n_cols":8,"rows_kept":42,"cut":false,"hidden":false,"merged":[[23,2,23,3],[37,0,37,4],[39,0,39,4],[2,2,2,3],[3,2,19,2]]}
["Supplies and Materials"]
["Item","Specification","Comments","Evaluation Quantity","Price Per unit Delivered",null,"Evaluation Extension"]
["Containers"]
["1A1 Steel 55 gallon Closed Head unlined New","1A2 /X1.2/250  ","Up to approximately 3000 containers per year to be delivered to the three facilities on a weekly or monthly basis",20,null,null,{"$f":"D4*E4","v":0}]
["1A2 Steel 55 gallon Open Head unlined New","1A2 /Y1.4/100  1A2/Y410/S",null,20,null,null,{"$f":"D5*E5","v":0}]
["1A1 Steel 55 gallon Closed Head unlined Reconditioned","1A2 /X1.2/250  ",null,200,null,null,0]
["1A2 Steel 55 gallon Open Head unlined reconditioned","1A2 /Y1.4/100  1A2/Y410/S",null,30,null,null,0]
["1A2 Steel 55 gallon Open Head unlined reconditioned","1A2 /Y1.2/100  1A2/Y410/S",null,1000,null,null,0]
["1H2 Poly 55 gallon Drum, open head, reconditioned","1H2/Y/…",null,100,null,null,0]
["1H2 Poly 55 gallon Drum, open head, new","1H2/Y/…",null,10,null,null,0]
["1H1 Poly 55 gallon Drum,  closed head, new","1H2/Y/…",null,10,null,null,0]
["1H2 Poly 5 gallon Drum, open head, new","1H1/Y/…",null,200,null,null,0]
["11G Meter Box with 6 mil Polyethyelene liner, closures and  Pallet","11/G/Y/S  with SP authorization for DOT Class 3 Labpacks",null,200,null,null,0]
["Shipping container for Universal Waste lamps - imprinted \"Universal Waste- Lamps, Start Date:\"","straight lamps up to 4' long",null,200,null,null,0]
["Shipping container for Universal Waste lamps - imprinted \"Universal Waste- Lamps, Start Date:\"","straight lamps up to 8' long",null,200,null,null,0]
["Shipping container for Universal Waste lamps - imprinted \"Universal Waste- Lamps, Start Date:\"","Compact and misc lamps up to 2' long",null,200,null,null,0]
["Liner bag: 55 gallon drum","polyethylene, 4 mil or thicker",null,200,null,null,0]
["Liner bag: 4' Lamp box","polyethylene, 4 mil or thicker",null,200,null,null,0]
["Liner bag: 8' Lamp box","polyethylene, 4 mil or thicker",null,200,null,null,0]
["Liner bag: 2' or misc lamp box","polyethylene, 4 mil or thicker",null,200,null,null,0]
["Coveralls"]
["Spunbond coveralls - no hood or booties, Tyvek or equivlent ","Assorted sizes M-XXXL","per unit in volumes of at least 100",1000,null,null,0]
["Poly coated chemical resistant coveralls, hooded with booties, Tychem or equivelent","Assorted sizes M-XXXL","per unit in volumes of at least 100",1000,null,null,0]
["Gloves"]
["Nitrile inner gloves  4 mil 9.5\"  Best Ndex 7005 or equivalent","Assorted sizes M-XXXL","per pair in volumes of at least 2000",10000,null,null,0]
["Nitrile Outer Gloves 8 mil 14\"  Ansell Solvex  37-145 or equivalent","Assorted sizes M-XXXL","per pair in volumes of at least 2000",2000,null,null,0]
["Cotton string knit liner gloves","Assorted sizes M-XXXL","per pair in volumes of at least 1000",5000,null,null,0]
["Absorbents"]
["Vermiculite","4 Cu ft bags Coarse or extra coarse","Per bag in minimum 30 bag deliveries",100,null,null,0]
["Clay based absorbant","25 lb. bag, low dust","Per bag in minimum 20 bag deliveries",100,null,null,0]
["Absorbent pad/roll","SPC UN1019  perforated 15\"x15' roll hazardous materials sorbent or equivalent","Per box  of 2 rolls",20,null,null,0]
[]
["Training"]
["Training Services listed on this page are optional and not required to complete the bid.  If pricing is submitted it will be considered firm according to the terms and conditions of the bid ."]
["Any pricing submitted will not be considered part of the price evaluation, but will be considered as part of the waste management services evaluation."]
["Title","Description","Comments","Est. Number of persons","Price per person or per training please specify"]
["OSHA HAZWOPER 8 hr Refresher","Customized for HHW OSHA 1910.120 8 hr refresher training","Alameda County Household HHW Program will supply a meeting room and A/V equipment.\nOccasionally Hazmat inspectors or technicians from other Household programs may be invited to attend","6-12   /  13-20",null," "]
[]
["DOT Hazardous Materials Transportation Training (HM126-128-215 )","Triennial Hazmat Worker Transportation training as specified in CFR49 172.700  Tailored for HHW programs","Alameda County Household HHW Program will supply a meeting room and A/V equipment.\nOccasionally Hazmat inspectors or technicians from other Household programs may be invited to attend","6-12   /  13-20"]
[]
["Respiratory Protection training\nBlood Borne pathogens training\n","Osha Compliant Respiratory protection and BBP training based on HHW Operations Plan, Safety Plans","Both trainings are 4 hrs or less and usually performed together on one day\nOccasionally Hazmat inspectors or technicians from other Household programs may be invited to attend","6-12  /13-20"," ",null,null," "]
[null,null,null,null,null,null,{"$f":"SUM(G4:G41)","v":0},"Evaluation subtotal"]